fUSD/lending_fUSD_20240630
["ID","MTS","AMOUNT","RATE_DAILY","PERIOD"]
[330704340,1719717042385,-500.0,0.00013917,3]
[330704342,1719717042394,-500.0,0.00013917,3]
[330704344,1719717042404,-500.0,0.00013917,3]
[330704346,1719717042414,-500.0,0.00013917,3]
[330704348,1719717042423,-500.0,0.00013917,3]
[330704350,1719717042432,-495.34318956,0.00013917,3]
[330704352,1719717042442,-682.66,0.00013917,3]
[330704353,1719717042451,-500.0,0.00013917,3]
[330704356,1719717042461,-500.0,0.00013917,3]
[330704357,1719717042470,-851.53,0.00013917,3]
[330704360,1719717042481,-500.0,0.00013917,3]
[330704362,1719717042490,-500.0,0.00013917,3]
[330704364,1719717042500,-500.0,0.00013917,3]
[330704366,1719717042511,-1462.6,0.00013917,3]
[330704368,1719717042520,-500.0,0.00013917,3]
[330704370,1719717042529,-613.89,0.00013917,3]
[330704372,1719717042539,-500.0,0.00013917,3]
[330704374,1719717042549,-500.0,0.00013917,3]
[330704376,1719717042559,-500.0,0.00013917,3]
[330704378,1719717042568,-3513.08,0.00013917,3]
[330704380,1719717042583,-500.0,0.00013917,3]
[330704382,1719717042593,-500.0,0.00013917,3]
[330704384,1719717042603,-500.0,0.00013917,3]
[330704386,1719717042612,-374.39,0.00013917,3]
[330704388,1719717042623,-500.0,0.00013917,3]
[330704390,1719717042633,-500.0,0.00013917,3]
[330704392,1719717042642,-500.0,0.00014009,3]
[330704394,1719717042652,-500.0,0.00014009,3]
[330704396,1719717042664,-1205.75,0.00014009,3]
[330704398,1719717042674,-274.04,0.00014009,3]
[330704399,1719717042683,-614.99,0.00014009,3]
[330704402,1719717042693,-500.0,0.00014009,3]
[330704404,1719717042703,-500.0,0.00014009,3]
[330704406,1719717042713,-500.0,0.00014009,3]
[330704407,1719717042722,-2039.35,0.00014009,3]
[330704410,1719717042731,-500.0,0.00014009,3]
[330704412,1719717042741,-200.19,0.00014009,3]
[330704414,1719717042752,-500.0,0.00014026,3]
[330704416,1719717042762,-500.0,0.00014026,3]
[330704418,1719717042772,-419.71,0.00014026,3]
[330704420,1719717042782,-500.0,0.00014026,3]
[330704422,1719717042792,-500.0,0.00014026,3]
[330704424,1719717042801,-500.0,0.00014026,3]
[330704425,1719717042811,-500.0,0.00014026,3]
[330704428,1719717042820,-500.0,0.00014026,3]
[330704430,1719717042829,-500.0,0.00014026,3]
[330704432,1719717042839,-500.0,0.00014026,3]
[330704434,1719717042848,-541.58832084,0.00014026,3]
[330704436,1719717042857,-362.13450624,0.00014026,3]
[330704438,1719717042866,-500.0,0.00014026,3]
[330704439,1719717042876,-500.0,0.00014026,3]
[330704442,1719717042886,-280.51593835,0.00014026,3]
[330704443,1719717042895,-188.83,0.00014026,3]
[330704445,1719717042904,-500.0,0.00014026,3]
[330704448,1719717042914,-500.0,0.00014026,3]
[330704450,1719717042923,-500.0,0.00014026,3]
[330704452,1719717042933,-500.0,0.00014026,3]
[330704454,1719717042942,-500.0,0.00014026,3]
[330704456,1719717042951,-500.0,0.00014026,3]
[330704457,1719717042961,-500.0,0.00014026,3]
[330704460,1719717042971,-170.53,0.00014026,3]
[330704462,1719717042980,-500.0,0.00014026,3]
[330704463,1719717042989,-500.0,0.00014026,3]
[330704466,1719717042999,-500.0,0.00014026,3]
[330704468,1719717043008,-500.0,0.00014026,3]
[330704470,1719717043018,-521.84,0.00014026,3]
[330704472,1719717043027,-500.0,0.00014026,3]
[330704475,1719717043037,-500.0,0.00014026,3]
[330704478,1719717043047,-500.0,0.00014027,3]
[330704482,1719717043056,-500.0,0.00014027,3]
[330704484,1719717043066,-500.0,0.00014027,3]
[330704486,1719717043075,-500.0,0.00014027,3]
[330704488,1719717043084,-500.0,0.00014027,3]
[330704491,1719717043093,-682.66,0.00014027,3]
[330704492,1719717043102,-500.0,0.00014027,3]
[330704495,1719717043112,-500.0,0.00014027,3]
[330704497,1719717043121,-851.53,0.00014027,3]
[330704498,1719717043130,-500.0,0.00014027,3]
[330704500,1719717043139,-161.51848348,0.00014027,3]
[330704503,1719717043149,-500.0,0.00014027,3]
[330704505,1719717043158,-1462.6,0.00014027,3]
[330704507,1719717043167,-500.0,0.00014027,3]
[330704509,1719717043176,-613.89,0.00014027,3]
[330704511,1719717043186,-500.0,0.00014027,3]
[330704513,1719717043195,-500.0,0.00014027,3]
[330704515,1719717043204,-3513.08,0.00014027,3]
[330704516,1719717043214,-500.0,0.00014027,3]
[330704519,1719717043224,-519.81,0.00014027,3]
[330704521,1719717043232,-160.26,0.00014027,3]
[330704523,1719717043242,-500.0,0.00014118,3]
[330704524,1719717043251,-500.0,0.00014118,3]
[330704526,1719717043260,-1205.75,0.00014118,3]
[330704528,1719717043270,-614.99,0.00014118,3]
[330704530,1719717043280,-500.0,0.00014118,3]
[330704533,1719717043290,-500.0,0.00014118,3]
[330704534,1719717043300,-415.09,0.00014118,3]
[330704537,1719717043310,-2039.35,0.00014118,3]
[330704539,1719717043319,-500.0,0.00014118,3]
[330704540,1719717043328,-500.0,0.00014135,3]
[330704543,1719717043338,-500.0,0.00014135,3]
[330704545,1719717043348,-500.0,0.00014135,3]
[330704547,1719717043357,-500.0,0.00014135,3]
[330704549,1719717043367,-337.12,0.00014135,3]
[330704551,1719717043376,-500.0,0.00014135,3]
[330704553,1719717043385,-500.0,0.00014135,3]
[330704555,1719717043395,-500.0,0.00014136,3]
[330704557,1719717043405,-500.0,0.00014136,3]
[330704559,1719717043414,-500.0,0.00014136,3]
[330704560,1719717043424,-500.0,0.00014136,3]
[330704562,1719717043434,-500.0,0.00014136,3]
[330704565,1719717043443,-682.66,0.00014136,3]
[330704567,1719717043453,-500.0,0.00014136,3]
[330704569,1719717043463,-500.0,0.00014136,3]
[330704571,1719717043472,-851.53,0.00014136,3]
[330704573,1719717043482,-198.23950238,0.00014136,3]
[330704574,1719717043491,-500.0,0.00014136,3]
[330704577,1719717043500,-1462.6,0.00014136,3]
[330704579,1719717043510,-500.0,0.00014136,3]
[330704581,1719717043520,-613.89,0.00014136,3]
[330704582,1719717043529,-500.0,0.00014136,3]
[330704583,1719717043539,-500.0,0.00014136,3]
[330704584,1719717043549,-3513.08,0.00014136,3]
[330704585,1719717043559,-500.0,0.00014136,3]
[330704586,1719717043569,-500.0,0.00014228,3]
[330704587,1719717043584,-500.0,0.00014228,3]
[330704588,1719717043594,-1205.75,0.00014228,3]
[330704590,1719717043603,-614.99,0.00014228,3]
[330704592,1719717043613,-500.0,0.00014228,3]
[330704594,1719717043623,-500.0,0.00014228,3]
[330704596,1719717043632,-500.0,0.00014228,3]
[330704598,1719717043642,-2039.35,0.00014228,3]
[330704600,1719717043651,-500.0,0.00014245,3]
[330704602,1719717043663,-500.0,0.00014245,3]
[330704603,1719717043673,-500.0,0.00014245,3]
[330704606,1719717043683,-421.16668828,0.00014245,3]
[330704607,1719717043692,-527.2460251,0.00014245,3]
[330704609,1719717043701,-500.0,0.00014245,3]
[330704611,1719717043711,-500.0,0.00014246,3]
[330704613,1719717043720,-500.0,0.00014246,3]
[330704615,1719717043729,-500.0,0.00014246,3]
[330704617,1719717043739,-500.0,0.00014246,3]
[330704619,1719717043748,-500.0,0.00014246,3]
[330704621,1719717043757,-682.66,0.00014246,3]
[330704623,1719717043767,-500.0,0.00014246,3]
[330704625,1719717043778,-500.0,0.00014246,3]
[330704627,1719717043788,-851.53,0.00014246,3]
[330704630,1719717043803,-500.0,0.00014246,3]
[330704632,1719717043812,-1462.6,0.00014246,3]
[330704634,1719717043822,-500.0,0.00014246,3]
[330704636,1719717043832,-613.89,0.00014246,3]
[330704638,1719717043842,-500.0,0.00014246,3]
[330704640,1719717043852,-500.0,0.00014246,3]
[330704642,1719717043861,-3513.08,0.00014246,3]
[330704644,1719717043871,-500.0,0.00014246,3]
[330704646,1719717043881,-500.0,0.00014337,3]
[330704648,1719717043891,-500.0,0.00014337,3]
[330704650,1719717043901,-1205.75,0.00014337,3]
[330704652,1719717043911,-614.99,0.00014337,3]
[330704654,1719717043921,-523.84244494,0.00014337,3]
[330704656,1719717043931,-500.0,0.00014337,3]
[330704658,1719717043940,-500.0,0.00014337,3]
[330704660,1719717043950,-2039.35,0.00014337,3]
[330704662,1719717043959,-500.0,0.00014355,3]
[330704664,1719717043969,-500.0,0.00014355,3]
[330704666,1719717043979,-348.7231179,0.00014355,3]
[330704669,1719717043989,-500.0,0.00014355,3]
[330704671,1719717043999,-465.45599576,0.00014356,3]
[330704673,1719717044009,-500.0,0.00014356,3]
[330704675,1719717044018,-500.0,0.00014356,3]
[330704677,1719717044030,-500.0,0.00014356,3]
[330704679,1719717044040,-500.0,0.00014356,3]
[330704681,1719717044051,-682.66,0.00014356,3]
[330704683,1719717044061,-500.0,0.00014356,3]
[330704685,1719717044071,-500.0,0.00014356,3]
[330704687,1719717044081,-851.53,0.00014356,3]
[330704689,1719717044091,-500.0,0.00014356,3]
[330704691,1719717044100,-1462.6,0.00014356,3]
[330704693,1719717044110,-500.0,0.00014356,3]
[330704695,1719717044119,-613.89,0.00014356,3]
[330704697,1719717044129,-500.0,0.00014356,3]
[330704699,1719717044138,-500.0,0.00014356,3]
[330704701,1719717044148,-3513.08,0.00014356,3]
[330704702,1719717044158,-500.0,0.00014356,3]
[330704703,1719717044167,-485.52,0.00014447,3]
[330704705,1719717044177,-500.0,0.00014447,3]
[330704707,1719717044187,-1205.75,0.00014447,3]
[330704708,1719717044197,-614.99,0.00014447,3]
[330704710,1719717044206,-500.0,0.00014447,3]
[330704711,1719717044216,-500.0,0.00014447,3]
[330704712,1719717044226,-2039.35,0.00014447,3]
[330704714,1719717044235,-500.0,0.00014464,3]
[330704715,1719717044245,-500.0,0.00014464,3]
[330704717,1719717044255,-500.0,0.00014464,3]
[330704719,1719717044264,-500.0,0.00014465,3]
[330704720,1719717044274,-500.0,0.00014465,3]
[330704722,1719717044284,-500.0,0.00014465,3]
[330704723,1719717044295,-500.0,0.00014465,3]
[330704725,1719717044305,-682.66,0.00014465,3]
[330704726,1719717044315,-500.0,0.00014465,3]
[330704728,1719717044330,-500.0,0.00014465,3]
[330704730,1719717044340,-851.53,0.00014465,3]
[330704731,1719717044349,-500.0,0.00014465,3]
[330704733,1719717044359,-1462.6,0.00014465,3]
[330704734,1719717044368,-500.0,0.00014465,3]
[330704736,1719717044377,-613.89,0.00014465,3]
[330704742,1719717044475,-500.0,0.00014465,3]
[330704744,1719717044486,-500.0,0.00014465,3]
[330704746,1719717044496,-3513.08,0.00014465,3]
[330704747,1719717044506,-500.0,0.00014465,3]
[330704748,1719717044516,-500.0,0.00014556,3]
[330704749,1719717044525,-1205.75,0.00014556,3]
[330704750,1719717044535,-614.99,0.00014556,3]
[330704751,1719717044545,-500.0,0.00014556,3]
[330704752,1719717044554,-500.0,0.00014556,3]
[330704753,1719717044563,-2039.35,0.00014556,3]
[330704754,1719717044572,-1000.0,0.00014559,2]
[330704755,1719717044587,-500.0,0.00014574,3]
[330704756,1719717044596,-500.0,0.00014574,3]
[330704757,1719717044605,-500.0,0.00014574,3]
[330704758,1719717044614,-500.0,0.00014575,3]
[330704759,1719717044625,-500.0,0.00014575,3]
[330704760,1719717044635,-500.0,0.00014575,3]
[330704761,1719717044644,-500.0,0.00014575,3]
[330704762,1719717044657,-682.66,0.00014575,3]
[330704763,1719717044666,-500.0,0.00014575,3]
[330704764,1719717044675,-500.0,0.00014575,3]
[330704765,1719717044684,-851.53,0.00014575,3]
[330704766,1719717044694,-500.0,0.00014575,3]
[330704767,1719717044703,-1462.6,0.00014575,3]
[330704768,1719717044712,-500.0,0.00014575,3]
[330704769,1719717044721,-613.89,0.00014575,3]
[330704770,1719717044730,-500.0,0.00014575,3]
[330704771,1719717044740,-500.0,0.00014575,3]
[330704772,1719717044749,-3513.08,0.00014575,3]
[330704773,1719717044760,-500.0,0.00014575,3]
[330704774,1719717044770,-65820.66235452,0.0001463,2]
[330704775,1719717044779,-500.0,0.00014666,3]
[330704776,1719717044788,-1205.75,0.00014666,3]
[330704777,1719717044799,-614.99,0.00014666,3]
[330704778,1719717044808,-500.0,0.00014666,3]
[330704779,1719717044817,-500.0,0.00014666,3]
[330704780,1719717044827,-2039.35,0.00014666,3]
[330704781,1719717044836,-500.0,0.00014683,3]
[330704782,1719717044845,-534.53601743,0.00014683,3]
[330704783,1719717044854,-500.0,0.00014683,3]
[330704784,1719717044864,-500.0,0.00014684,3]
[330704785,1719717044873,-500.0,0.00014684,3]
[330704786,1719717044882,-500.0,0.00014684,3]
[330704787,1719717044891,-500.0,0.00014684,3]
[330704788,1719717044901,-682.66,0.00014684,3]
[330704789,1719717044910,-500.0,0.00014684,3]
[330704790,1719717044920,-500.0,0.00014684,3]
[330704791,1719717044930,-851.53,0.00014684,3]
[330704793,1719717044940,-500.0,0.00014684,3]
[330704794,1719717044949,-1462.6,0.00014684,3]
[330704796,1719717044958,-500.0,0.00014684,3]
[330704797,1719717044968,-613.89,0.00014684,3]
[330704799,1719717044978,-500.0,0.00014684,3]
[330704800,1719717044987,-500.0,0.00014684,3]
[330704802,1719717044997,-3513.08,0.00014684,3]
[330704804,1719717045006,-500.0,0.00014684,3]
[330704806,1719717045015,-606.20802738,0.00014776,3]
[330704808,1719717045026,-1205.75,0.00014776,3]
[330704809,1719717045035,-614.99,0.00014776,3]
[330704810,1719717045045,-500.0,0.00014776,3]
[330704811,1719717045054,-500.0,0.00014776,3]
[330704812,1719717045063,-2039.35,0.00014776,3]
[330704813,1719717045075,-500.0,0.00014793,3]
[330704814,1719717045084,-500.0,0.00014793,3]
[330704815,1719717045093,-500.0,0.00014794,3]
[330704816,1719717045102,-189.81480244,0.00014794,3]
[330704817,1719717045111,-500.0,0.00014794,3]
[330704818,1719717045120,-500.0,0.00014794,3]
[330704819,1719717045128,-682.66,0.00014794,3]
[330704820,1719717045138,-500.0,0.00014794,3]
[330704821,1719717045147,-500.0,0.00014794,3]
[330704822,1719717045155,-851.53,0.00014794,3]
[330704823,1719717045164,-500.0,0.00014794,3]
[330704824,1719717045174,-1462.6,0.00014794,3]
[330704825,1719717045182,-500.0,0.00014794,3]
[330704827,1719717045192,-613.89,0.00014794,3]
[330704829,1719717045201,-500.0,0.00014794,3]
[330704831,1719717045211,-500.0,0.00014794,3]
[330704833,1719717045220,-3513.08,0.00014794,3]
[330704835,1719717045229,-500.0,0.00014794,3]
[330704837,1719717045239,-418.74,0.000148,2]
[330704839,1719717045248,-668.0,0.0001485,2]
[330704840,1719717045257,-1205.75,0.00014885,3]
[330704841,1719717045267,-614.99,0.00014885,3]
[330704842,1719717045276,-500.0,0.00014885,3]
[330704843,1719717045286,-318.922617,0.00014885,3]
[330704844,1719717045296,-2039.35,0.00014885,3]
[330704845,1719717045306,-500.0,0.00014903,3]
[330704846,1719717045316,-500.0,0.00014903,3]
[330704847,1719717045325,-500.0,0.00014904,3]
[330704848,1719717045334,-500.0,0.00014904,3]
[330704849,1719717045355,-500.0,0.00014904,3]
[330704850,1719717045365,-682.66,0.00014904,3]
[330704851,1719717045375,-500.0,0.00014904,3]
[330704852,1719717045385,-500.0,0.00014904,3]
[330704853,1719717045395,-851.53,0.00014904,3]
[330704854,1719717045405,-187.47456363,0.00014904,3]
[330704855,1719717045415,-1462.6,0.00014904,3]
[330704856,1719717045424,-500.0,0.00014904,3]
[330704857,1719717045433,-613.89,0.00014904,3]
[330704858,1719717045443,-500.0,0.00014904,3]
[330704859,1719717045452,-500.0,0.00014904,3]
[330704860,1719717045461,-3513.08,0.00014904,3]
[330704861,1719717045471,-286.43917784,0.00014904,3]
[330704880,1719717045768,959.5102985,0.00011098,2]
[330704887,1719717045827,-155.53850452,0.00013452,2]
[330704889,1719717045837,-500.0,0.00013899,3]
[330704891,1719717045846,-500.0,0.00014009,3]
[330704893,1719717045855,-226.66149548,0.00014118,3]
[330704895,1719717045867,-273.33850452,0.00014118,3]
[330704897,1719717045877,-500.0,0.00014228,3]
[330704899,1719717045886,-500.0,0.00014337,3]
[330704901,1719717045895,-432.46549202,0.00014447,3]
[330704903,1719717045904,-45.19600346,0.00014904,3]
[330704906,1719717045916,-168.3648187,0.00014904,3]
[330704908,1719717045925,-1205.75,0.00014995,3]
[330704910,1719717045935,-614.99,0.00014995,3]
[330704912,1719717045944,-644.48619019,0.00014995,3]
[330704914,1719717045954,-1913.49657892,0.00014995,3]
[330704916,1719717045965,-125.85342108,0.00014995,3]
[330704918,1719717045975,-1622.71284507,0.00015,2]
[330704920,1719717045986,-1120.0285415,0.00015,2]
[330704934,1719717046108,-9.02246135,0.00012349,2]
[330704937,1719717046119,-151.25509176,0.00012349,2]
[330704939,1719717046132,-1134.28786658,0.00013638,2]
[330704941,1719717046141,-932.87522788,0.00015,2]
[330704967,1719717046414,-292.25097415,0.00015,2]
[330704968,1719717046424,-5000.0,0.00015,2]
[330704969,1719717046433,-604.708003,0.00015,2]
[330704970,1719717046442,-622.59689453,0.00015,2]
[330704971,1719717046451,-500.0,0.00015012,3]
[330704972,1719717046460,-500.0,0.00015012,3]
[330704973,1719717046471,-500.0,0.00015013,3]
[330704974,1719717046481,-500.0,0.00015013,3]
[330704975,1719717046490,-500.0,0.00015013,3]
[330704976,1719717046499,-682.66,0.00015013,3]
[330704977,1719717046508,-500.0,0.00015013,3]
[330704978,1719717046518,-500.0,0.00015013,3]
[330704979,1719717046527,-851.53,0.00015013,3]
[330704980,1719717046536,-1462.6,0.00015013,3]
[330704981,1719717046546,-500.0,0.00015013,3]
[330704982,1719717046555,-613.89,0.00015013,3]
[330704983,1719717046564,-500.0,0.00015013,3]
[330704984,1719717046576,-500.0,0.00015013,3]
[330704985,1719717046587,-3513.08,0.00015013,3]
[330704986,1719717046596,-500.0,0.00015013,3]
[330704987,1719717046606,-189.06,0.00015068,2]
[330704988,1719717046616,-300.0,0.00015068,2]
[330704989,1719717046626,-1205.75,0.00015104,3]
[330704990,1719717046635,-614.99,0.00015104,3]
[330704991,1719717046644,-2039.35,0.00015104,3]
[330704992,1719717046655,-500.0,0.00015122,3]
[330704993,1719717046665,-500.0,0.00015122,3]
[330704994,1719717046674,-400.61278515,0.00015123,3]
[330704995,1719717046683,-500.0,0.00015123,3]
[330704997,1719717046692,-500.0,0.00015123,3]
[330704999,1719717046701,-682.66,0.00015123,3]
[330705000,1719717046710,-500.0,0.00015123,3]
[330705002,1719717046719,-500.0,0.00015123,3]
[330705004,1719717046728,-851.53,0.00015123,3]
[330705006,1719717046738,-1462.6,0.00015123,3]
[330705008,1719717046747,-632.22512158,0.00015123,3]
[330705010,1719717046757,-613.89,0.00015123,3]
[330705011,1719717046767,-500.0,0.00015123,3]
[330705012,1719717046777,-500.0,0.00015123,3]
[330705013,1719717046786,-3513.08,0.00015123,3]
[330705014,1719717046795,-500.0,0.00015123,3]
[330705015,1719717046805,-425.60698662,0.00015166,2]
[330705016,1719717046815,-1205.75,0.00015214,3]
[330705017,1719717046825,-614.99,0.00015214,3]
[330705018,1719717046834,-2039.35,0.00015214,3]
[330705019,1719717046844,-500.0,0.00015231,3]
[330705020,1719717046856,-193.57271521,0.00015231,3]
[330705021,1719717046866,-500.0,0.00015232,3]
[330705022,1719717046875,-500.0,0.00015232,3]
[330705023,1719717046885,-682.66,0.00015232,3]
[330705024,1719717046895,-500.0,0.00015232,3]
[330705025,1719717046904,-500.0,0.00015232,3]
[330705026,1719717046914,-851.53,0.00015232,3]
[330705027,1719717046924,-1462.6,0.00015232,3]
[330705028,1719717046933,-613.89,0.00015232,3]
[330705029,1719717046943,-393.29225818,0.00015232,3]
[330705030,1719717046952,-500.0,0.00015232,3]
[330705031,1719717046962,-3513.08,0.00015232,3]
[330705032,1719717046972,-500.0,0.00015232,3]
[330705033,1719717046982,-1205.75,0.00015324,3]
[330705034,1719717046993,-614.99,0.00015324,3]
[330705035,1719717047003,-2039.35,0.00015324,3]
[330705036,1719717047013,-381.71964895,0.00015341,3]
[330705037,1719717047022,-500.0,0.00015342,3]
[330705038,1719717047032,-500.0,0.00015342,3]
[330705039,1719717047042,-682.66,0.00015342,3]
[330705040,1719717047052,-500.0,0.00015342,3]
[330705041,1719717047061,-500.0,0.00015342,3]
[330705042,1719717047071,-851.53,0.00015342,3]
[330705043,1719717047081,-1462.6,0.00015342,3]
[330705044,1719717047090,-613.89,0.00015342,3]
[330705045,1719717047099,-368.22913001,0.00015342,3]
[330705046,1719717047196,-866.58344244,0.00013917,2]
[330705047,1719717113236,348.50212434,0.00011098,2]
[330705051,1719717189317,155.0,0.00011098,2]
[330705052,1719717196201,959.5102985,0.00011098,2]
[330705053,1719717205247,348.16514109,0.00011098,2]
[330705054,1719717220410,5797.11331304,0.00011098,2]
[330705055,1719717240958,3072.15423039,0.00011098,2]
[330705056,1719717259306,17906.78166871,0.00011099,2]
[330705057,1719717283204,1026.51196169,0.00011098,2]
[330705058,1719717286993,660.70344244,0.00011098,2]
[330705059,1719717289325,251.1493361,0.00011098,2]
[330705060,1719717305545,1136.94159012,0.00011098,2]
[330705061,1719717319601,720.86438453,0.00011098,2]
[330705062,1719717334148,1270.37297567,0.00011098,2]
[330705063,1719717348291,1069.82113378,0.00011098,2]
[330705065,1719717377370,475.10495739,0.00011098,2]
[330705066,1719717389857,543.96475932,0.00011098,2]
[330705067,1719717406159,298.39636076,0.00011098,2]
[330705068,1719717408180,155.28352034,0.00011098,2]
[330705069,1719717414312,264.51247513,0.00011098,2]
[330705070,1719717416756,328.45118823,0.00011098,2]
[330705071,1719717419618,269.54255609,0.00011098,2]
[330705072,1719717426367,367.0078146,0.00011098,2]
[330705073,1719717430527,518.46321348,0.00011098,2]
[330705074,1719717431040,478.95385051,0.00011098,2]
[330705075,1719717431362,296.51463104,0.00011098,2]
[330705076,1719717433598,378.91558668,0.00011098,2]
[330705077,1719717434841,232.79014581,0.00011098,2]
[330705078,1719717446519,518.46321348,0.00011098,2]
[330705079,1719717446822,227.04865744,0.00011098,2]
[330705080,1719717449053,155.0,0.00011098,2]
[330705081,1719717449378,311.82527914,0.00011098,2]
[330705082,1719717449646,243.89799269,0.00011098,2]
[330705083,1719717456733,959.5102985,0.00011098,2]
[330705084,1719717463854,346.07679139,0.00011098,2]
[330705085,1719717464237,339.34174154,0.00011098,2]
[330705086,1719717469267,155.0,0.00011098,2]
[330705087,1719717470543,155.11719868,0.00011098,2]
[330705088,1719717471253,348.50212434,0.00011098,2]
[330705089,1719717473889,197.7067058,0.00011098,2]
[330705090,1719717477783,1366.31409354,0.00011098,2]
[330705091,1719717478106,158.40486002,0.00011098,2]
[330705092,1719717495192,308.06128514,0.00011098,2]
[330705093,1719717534981,300.34969063,0.00011098,2]
[330705094,1719717553750,959.5102985,0.00011098,2]
[330705095,1719717554293,348.50212434,0.00011098,2]
[330705097,1719717560835,4458.61712229,0.00011098,2]
[330705098,1719717590986,3072.90189007,0.00011098,2]
[330705099,1719717593570,5598.83912475,0.00011098,2]
[330705100,1719717600990,3114.92167456,0.00011098,2]
[330705101,1719717602252,150.0,0.00011098,2]
[330705102,1719717603228,150.0,0.00011098,2]
[330705103,1719717603408,150.0,0.00011098,2]
[330705104,1719717603643,150.0,0.00011098,2]
[330705105,1719717603991,150.0,0.00011098,2]
[330705106,1719717604218,150.0,0.00011098,2]
[330705107,1719717604478,298.46034959,0.00011098,2]
[330705108,1719717628743,959.5102985,0.00011098,2]
[330705109,1719717629180,2200.02980555,0.00011098,2]
[330705110,1719717640655,955.85753929,0.00011098,2]
[330705111,1719717650285,775.82798784,0.00011098,2]
[330705112,1719717659260,348.50212434,0.00011098,2]
[330705113,1719717660991,300.34969063,0.00011098,2]
[330705114,1719717664351,761.01746349,0.00011098,2]
[330705115,1719717689732,2005.76251398,0.00011098,2]
[330705118,1719717719733,544.44616769,0.00011098,2]
[330705119,1719717721250,959.5102985,0.00011098,2]
[330705120,1719717737021,155.25761649,0.00011098,2]
[330705121,1719717738933,302.3204216,0.00011098,2]
[330705122,1719717748305,253.90432169,0.00011098,2]
[330705123,1719717755417,155.54999484,0.00011098,2]
[330705124,1719717756669,292.20824685,0.00011098,2]
[330705125,1719717758054,284.41538566,0.00011098,2]
[330705126,1719717763705,351.85255065,0.00011098,2]
[330705127,1719717764277,341.54473111,0.00011098,2]
[330705128,1719717764362,191.17750657,0.00011098,2]
[330705129,1719717768787,217.87188322,0.00011098,2]
[330705130,1719717772496,3072.90189007,0.00011098,2]
[330705131,1719717772724,532.91398684,0.00011098,2]
[330705132,1719717783523,660.87980452,0.00011098,2]
[330705133,1719717784821,156.19862631,0.00011098,2]
[330705134,1719717791626,492.0294394,0.00011098,2]
[330705135,1719717803248,825.51209318,0.00011098,2]
[330705136,1719717817058,5591.51960162,0.00011098,2]
[330705137,1719717851073,155.76123069,0.00011098,2]
[330705138,1719717862686,774.49,0.00010741,2]
[330705139,1719717865944,227.04865744,0.00011098,2]
[330705140,1719717878601,378.28795838,0.00011098,2]
[330705141,1719717890648,158.40486002,0.00011098,2]
[330705142,1719717895838,1070.69387234,0.00011098,2]
[330705143,1719717896802,156.4715626,0.00011098,2]
[330705144,1719717909044,269.54255609,0.00011098,2]
[330705145,1719717923467,160.27755311,0.00011097,2]
[330705146,1719717931127,158.95381059,0.00011098,2]
[330705147,1719717931516,360.95361939,0.00011098,2]
[330705148,1719717940324,168.69889868,0.00011098,2]
[330705149,1719717945839,236.22816173,0.00011098,2]